Workbook

Sheet Лист1
A1: Школа | C1: МАОУ гимназия №1 г. Белебея | F1: Утвердил: | G1: должность | H1: ИП Багаутдинов С.Б.- аутсорсер
A2: Типовое примерное меню приготавливаемых блюд | G2: фамилия | H2: Багаутдинов С.Б.
A3: Возрастная категория | E3: 7-11 лет | G3: дата | H3: 12 | I3: 1 | J3: 2026
H4: день | I4: месяц | J4: год
A5: Неделя | B5: День недели | C5: Прием пищи | D5: Раздел меню | E5: Блюда | F5: Вес блюда, г | G5: Белки | H5: Жиры | I5: Углеводы | J5: Калорийность | K5: № рецептуры | L5: Цена
A6: 1 | B6: 1 | C6: Завтрак | D6: гор.блюдо | E6: Макаронные изделия с тертым сыром | F6: 180 | G6: 13.40 | H6: 12.80 | I6: 32.20 | J6: 293.00 | K6: шм08003 | L6: 51.26
D8: гор.напиток | E8: Чай с сахаром | F8: 200 | G8: 0.10 | H8: 0.03 | I8: 9.10 | J8: 35.00 | K8: су13/0* | L8: 2.30
D9: хлеб | E9: Хлеб пшеничный витаминизированный,масло порционное | F9: 48 | G9: 3.20 | H9: 4.40 | I9: 18.80 | J9: 166.00 | K9: дп00007 | L9: 10.90
D10: фрукты | E10: Яблоки | F10: 100 | G10: 0.30 | H10: 0.40 | I10: 13.80 | J10: 68.00 | K10: дп00340 | L10: 12.50
D13: итого | F13: =+F6+F8+F9+F10 -> 528 | G13: =+G6+G8+G9+G10 -> 17.00 | H13: =+H6+H8+H9+H10 -> 17.63 | I13: =+I6+I8+I9+I10 -> 73.90 | J13: =+J6+J8+J9+J10 -> 562.00 | L13: =+L6+L8+L9+L10 -> 76.96
A14: 1 | B14: 1 | C14: Обед | D14: закуска
D15: 1 блюдо | E15: Суп картофельн.с бобов.и гренками | F15: 215 | G15: 5.59 | H15: 5.98 | I15: 12.08 | J15: 161.00 | K15: ДП00278 | L15: 13.13
D16: 2 блюдо | E16: Гуляш из мяса говядины | F16: 92 | G16: 10.16 | H16: 14.11 | I16: 6.91 | J16: 205.00 | K16: ДП***00 | L16: 56.93
D17: гарнир | E17: Каша перловая рассыпчатая | F17: 155 | G17: 6.60 | H17: 3.90 | I17: 31.20 | J17: 181.00 | K17: СУ070/3 | L17: 8.26
D18: напиток | E18: Чай с сахаром | F18: 200 | G18: 0.10 | H18: 0.03 | I18: 9.10 | J18: 35.00 | K18: су13/0* | L18: 1.80
D19: хлеб бел. | E19: Хлеб пшеничный витаминизированный | F19: 50 | G19: 2.15 | H19: 0.50 | I19: 28.00 | J19: 130.00 | K19: дп0005* | L19: 4.25
D20: хлеб черн. | E20: Хлеб ржано-пшеничный витаминизированный | F20: 20 | G20: 2.35 | H20: 1.55 | I20: 14.20 | J20: 81.00 | K20: пс**000 | L20: 1.70
D23: итого | F23: =F15+F16+F17+F18+F19+F20 -> 732 | G23: =G15+G16+G17+G18+G19+G20 -> 26.95 | H23: 26.07 | I23: 101.49 | J23: 793 | L23: 86.07
A24: 1 | B24: 1 | C24: Итого за день: | F24: =+F13+F23 -> 1,260 | G24: =+G13+G23 -> 43.95 | H24: =+H13+H23 -> 43.70 | I24: =+I13+I23 -> 175.39 | J24: =+J13+J23 -> 1355.00 | L24: 0.00
A25: 1 | B25: 2 | C25: Завтрак | D25: гор.блюдо | E25: Каша рисовая молочная вязкая с маслом | F25: 205 | G25: 6.25 | H25: 10.77 | I25: 20.75 | J25: 226.00 | K25: су07015 | L25: 41.40
D27: гор.напиток | E27: Чай с сахаром | F27: 200 | G27: 0.10 | H27: 0.03 | I27: 9.10 | J27: 35.00 | K27: су13/0* | L27: 3.00
D28: хлеб | E28: Хлеб пшеничный витаминизированный,сыр порционный | F28: 60 | G28: 6.75 | H28: 3.50 | I28: 28.00 | J28: 194.00 | K28: дп0005* | L28: 12.56
D29: фрукты
D30: сладкое | E30: Кекс с начинкой для детского питания | F30: 35 | G30: 3.00 | H30: 3.20 | I30: 25.15 | J30: 125.00 | K30: Дн123** | L30: 20.00
D32: итого | F32: =+F25+F27+F28+F30 -> 500 | G32: =+G25+G27+G28+G30 -> 16.10 | H32: =+H25+H27+H28+H30 -> 17.50 | I32: =+I25+I27+I28+I30 -> 83.00 | J32: =+J25+J27+J28+J30 -> 580.00 | L32: =+L25+L27+L28+L30 -> 76.96
A33: 1 | B33: 2 | C33: Обед | D33: закуска | E33: Салат из белокач.кап.новый урожай// | F33: 60 | G33: 0.61 | H33: 0.95 | I33: 7.90 | J33: 68.00 | K33: дп03229 | L33: 5.91
D34: 1 блюдо | E34: Суп картофел.с крупой гречневой | F34: 200 | G34: 4.20 | H34: 9.34 | I34: 27.60 | J34: 154.00 | K34: дп*0284 | L34: 8.38
D35: 2 блюдо | E35: Наггетсы из мяса птицы с соусом | F35: 100 | G35: 13.20 | H35: 12.94 | I35: 13.19 | J35: 199.00 | K35: СВ*5000 | L35: 54.28
D36: гарнир | E36: Макаронные изделия отварные с маслом | F36: 155 | G36: 2.50 | H36: 3.81 | I36: 24.00 | J36: 165.00 | K36: ДП001*/ | L36: 12.16
D37: напиток | E37: Чай с сахаром | F37: 200 | G37: 0.10 | H37: 0.03 | I37: 9.10 | J37: 35.00 | K37: су13/0* | L37: 1.94
D38: хлеб бел. | E38: Хлеб пшеничный витаминизированный | F38: 40 | G38: 3.20 | H38: 0.40 | I38: 18.80 | J38: 104.00 | K38: дп00007 | L38: 3.40
D39: хлеб черн.
D42: итого | F42: =+F33+F34+F35+F36+F38+F37 -> 755 | G42: =+G33+G34+G35+G36+G37+G38 -> 23.81 | H42: =+H33+H34+H35+H36+H37+H38 -> 27.47 | I42: =+I33+I34+I35+I36+I37+I38 -> 100.59 | J42: =+J33+J34+J35+J36+J37+J38 -> 725.00 | L42: =+L33+L34+L35+L36+L37+L38 -> 86.07
A43: 1 | B43: 2 | C43: Итого за день: | F43: =+F32+F42 -> 1,255 | G43: =+G32+G42 -> 39.91 | H43: =+H32+H42 -> 44.97 | I43: =+I32+I42 -> 183.59 | J43: =+J32+J42 -> 1305.00 | L43: 0.00
A44: 1 | B44: 3 | C44: Завтрак | D44: гор.блюдо | E44: Запеканка из творога со сгущёнкой | F44: 150 | G44: 15.67 | H44: 18.98 | I44: 35.00 | J44: 340.00 | K44: ДН00045 | L44: 58.25
D46: гор.напиток | E46: Чай с сахаром | F46: 200 | G46: 0.10 | H46: 0.03 | I46: 9.10 | J46: 35.00 | K46: су13/0* | L46: 1.56
D47: хлеб | E47: Хлеб пшеничный витаминизированный | F47: 40 | G47: 3.20 | H47: 0.40 | I47: 18.80 | J47: 104.00 | K47: ДП00007 | L47: 3.40
D48: фрукты | E48: Яблоки | F48: 110 | G48: 0.22 | I48: 14.62 | J48: 97.00 | K48: ДН00340 | L48: 13.75
D51: итого | F51: =+F44+F46+F47+F48 -> 500 | G51: =+G44+G46+G47+G48 -> 19.19 | H51: =+H44+H46+H47 -> 19.41 | I51: =+I44+I46+I47+I48 -> 77.52 | J51: =+J44+J46+J47+J48 -> 576.00 | L51: =+L44+L46+L47+L48 -> 76.96
A52: 1 | B52: 3 | C52: Обед | D52: закуска
D53: 1 блюдо | E53: Свекольник со сметаной | F53: 255 | G53: 1.96 | H53: 2.42 | I53: 24.72 | J53: 132.00 | K53: Шс020** | L53: 16.10
D54: 2 блюдо | E54: Плов из курицы(филе курицы) | F54: 180 | G54: 15.10 | H54: 18.40 | I54: 23.40 | J54: 324.00 | K54: дп*0194 | L54: 52.79
D55: гарнир
D56: напиток | E56: Компот из свежих плодов | F56: 200 | G56: 0.20 | H56: 0.10 | I56: 17.20 | J56: 68.00 | K56: дп00122 | L56: 11.23
D57: хлеб бел. | E57: Хлеб пшеничный витаминизированный | F57: 40 | G57: 3.20 | H57: 0.40 | I57: 18.80 | J57: 104.00 | K57: дп00007 | L57: 3.40
D58: хлеб черн. | E58: Хлеб ржано-пшеничный витаминизированный | F58: 30 | G58: 6.53 | H58: 6.33 | I58: 22.30 | J58: 122.00 | K58: пд**000 | L58: 2.55
D61: итого | F61: =+F53+F54+F56+F57+F58 -> 705 | G61: =+G53+G54+G56+G57+G58 -> 26.99 | H61: =+H53+H54+H56+H57+H58 -> 27.65 | I61: =+I53+I54+I56+I57+I58 -> 106.42 | J61: =+J53+J54+J56+J57+J58 -> 750.00 | L61: =+L53+L54+L56+L57+L58 -> 86.07
A62: 1 | B62: 3 | C62: Итого за день: | F62: =+F51+F61 -> 1,205 | G62: =+G51+G61 -> 46.18 | H62: =+H51+H61 -> 47.06 | I62: =+I51+I61 -> 183.94 | J62: =+J51+J61 -> 1326.00 | L62: 0.00
A63: 1 | B63: 4 | C63: Завтрак | D63: гор.блюдо | E63: Биточки рыбные с соусом томатным | F63: 90 | G63: 9.91 | H63: 11.46 | I63: 4.25 | J63: 164.00 | K63: днп024* | L63: 40.74
D64: гор.блюдо | E64: Каша рисовая рассыпчатая | F64: 155 | G64: 3.60 | H64: 3.94 | I64: 37.20 | J64: 201.00 | K64: СУ070/6 | L64: 16.57
D65: гор.напиток | E65: Чай с сахаром и лимоном | F65: 200 | G65: 0.19 | I65: 9.30 | J65: 37.00 | K65: дп0033/ | L65: 3.75
D66: хлеб | E66: Хлеб пшеничный витаминизированный | F66: 40 | G66: 3.20 | H66: 0.40 | I66: 18.80 | J66: 104.00 | K66: ДП00007 | L66: 3.40
D67: фрукты | E67: Яблоки | F67: 100 | G67: 0.30 | H67: 0.40 | I67: 13.80 | J67: 68.00 | K67: дп00340 | L67: 12.50
D70: итого | F70: =+F63+F64+F65+F66+F67 -> 585 | G70: =+G63+G64+G65+G66+G67 -> 17.20 | H70: =+H63+H64+H65+H66+H67 -> 16.20 | I70: =+I63+I64+I65+I66+I67 -> 83.35 | J70: =+J63+J64+J65+J66+J67 -> 574.00 | L70: =+L63+L64+L65+L66+L67 -> 76.96
B71: 4 | C71: Обед | D71: закуска
D72: 1 блюдо | E72: Щи из свежей капусты с картофелем со сметаной | F72: 205 | G72: 3.05 | H72: 7.25 | I72: 15.37 | J72: 91.00 | K72: ШЗ02002 | L72: 9.52
D73: 2 блюдо | E73: Котлеты 'Нежные' с соусом | F73: 90 | G73: 12.36 | H73: 14.53 | I73: 9.30 | J73: 167.00 | K73: сз*5000 | L73: 47.76
D74: гарнир | E74: Макаронные изделия отварные с маслом | F74: 155 | G74: 2.50 | H74: 3.81 | I74: 24.00 | J74: 165.00 | K74: ДП001*/ | L74: 12.04
D75: напиток | E75: Напиток апельсиновый | F75: 200 | I75: 20.70 | J75: 77.00 | K75: дп00158 | L75: 11.65
D76: хлеб бел. | E76: Хлеб пшеничный витаминизированный | F76: 40 | G76: 3.20 | H76: 0.40 | I76: 18.80 | J76: 104.00 | K76: дп00007 | L76: 3.40
D77: хлеб черн. | E77: Хлеб ржано-пшеничный витаминизированный | F77: 20 | G77: 2.35 | H77: 1.55 | I77: 14.20 | J77: 81.00 | K77: пс**000 | L77: 1.70
D80: итого | F80: =+F72+F73+F74+F75+F76+F77 -> 710 | G80: =+G72+G73+G74+G76+G77 -> 23.46 | H80: =+H72+H73+H74+H76+H77 -> 27.54 | I80: =+I72+I73+I74+I75+I76+I77 -> 102.37 | J80: =+J72+J73+J74+J75+J76+J77 -> 685.00 | L80: =+L72+L73+L74+L75+L76+L77 -> 86.07
A81: 1 | B81: 4 | C81: Итого за день: | F81: =+F70+F80 -> 1,295 | G81: =+G70+G80 -> 40.66 | H81: =+H70+H80 -> 43.74 | I81: =+I70+I80 -> 185.72 | J81: =+J70+J80 -> 1259.00 | L81: 0.00
A82: 1 | B82: 5 | C82: Завтрак | D82: гор.блюдо | E82: Наггетсы из мяса птицы с соусом | F82: 90 | G82: 8.30 | H82: 11.36 | I82: 9.62 | J82: 197.00 | K82: СВ*4009 | L82: 43.93
D83: гор.блюдо | E83: Картофельное пюре | F83: 150 | G83: 6.08 | H83: 4.92 | I83: 27.00 | J83: 148.00 | K83: ну06003 | L83: 20.38
D84: гор.напиток | E84: Чай витаминизированный | F84: 200 | G84: 0.10 | H84: 0.03 | I84: 9.10 | J84: 35.00 | K84: дп**334 | L84: 7.55
D85: хлеб | E85: Хлеб пшеничный витаминизированный | F85: 60 | G85: 2.00 | H85: 0.60 | I85: 38.00 | J85: 156.00 | K85: дп000*5 | L85: 5.10
D86: фрукты
D89: итого | F89: =+F82+F83+F84+F85 -> 500 | G89: =+G82+G83+G84+G85 -> 16.48 | H89: =+H82+H83+H84+H85 -> 16.91 | I89: =+I82+I83+I84+I85 -> 83.72 | J89: =+J82+J83+J84+J85 -> 536.00 | L89: =+L82+L83+L85+L84 -> 76.96
A90: 1 | B90: 5 | C90: Обед | D90: закуска
D91: 1 блюдо | E91: Суп картофельный с клецками | F91: 200 | G91: 1.30 | H91: 2.00 | I91: 8.80 | J91: 75.00 | K91: ДП00281 | L91: 8.49
D92: 2 блюдо | E92: Гуляш из куриной грудки | F92: 90 | G92: 12.74 | H92: 12.06 | I92: 33.03 | J92: 240.00 | K92: п000370 | L92: 58.67
D93: гарнир | E93: Каша гречневая вязкая с маслом | F93: 150 | G93: 6.58 | H93: 7.58 | I93: 27.07 | J93: 195.00 | K93: ДП*0075 | L93: 8.41
D94: напиток | E94: Кисель из концентрата плодовых или ягодных | F94: 200 | I94: 15.00 | J94: 76.00 | K94: шм13018 | L94: 5.40
D95: хлеб бел. | E95: Хлеб пшеничный витаминизированный | F95: 40 | G95: 3.20 | H95: 0.40 | I95: 18.80 | J95: 104.00 | K95: дп00007 | L95: 3.40
D96: хлеб черн. | E96: Хлеб ржано-пшеничный витаминизированный | F96: 20 | G96: 2.35 | H96: 1.55 | I96: 14.20 | J96: 81.00 | K96: пс**000 | L96: 1.70
D99: итого | F99: =+F91+F92+F93+F94+F95+F96 -> 700 | G99: =+G91+G92+G93+G95+G96 -> 26.17 | H99: =+H91+H92+H93+H95+H96 -> 23.59 | I99: =+I91+I92+I93+I94+I95+I96 -> 116.90 | J99: =+J91+J92+J93+J94+J95+J96 -> 771.00 | L99: =+L91+L92+L93+L94+L95+L96 -> 86.07
A100: 1 | B100: 5 | C100: Итого за день: | F100: =+F89+F99 -> 1,200 | G100: =+G89+G99 -> 42.65 | H100: =+H89+H99 -> 40.50 | I100: =+I89+I99 -> 200.62 | J100: =+J89+J99 -> 1307.00 | L100: 0.00
A101: 2 | B101: 1 | C101: Завтрак | D101: гор.блюдо | E101: Котлеты из филе кур. с том.соусом | F101: 90 | G101: 9.50 | H101: 12.36 | I101: 17.62 | J101: 227.00 | K101: св*4000 | L101: 54.67
D102: гор.блюдо | E102: Макаронные изделия отварные | F102: 185 | G102: 3.60 | H102: 4.70 | I102: 37.40 | J102: 190.00 | K102: ШМ08001 | L102: 16.47
D103: гор.напиток | E103: Чай с сахаром | F103: 200 | G103: 0.10 | H103: 0.03 | I103: 9.10 | J103: 35.00 | K103: су13/0* | L103: 2.42
D104: хлеб | E104: Хлеб пшеничный витаминизированный | F104: 40 | G104: 3.20 | H104: 0.40 | I104: 18.80 | J104: 104.00 | K104: ДП00007 | L104: 3.40
D105: фрукты
D108: итого | F108: =+F101+F102+F103+F104 -> 515 | G108: =+G101+G102+G103+G104 -> 16.40 | H108: =+H101+H102+H103+H104 -> 17.49 | I108: =+I101+I102+I103+I104 -> 82.92 | J108: =+J101+J102+J103+J104 -> 556.00 | L108: =+L101+L102+L103+L104 -> 76.96
A109: 2 | B109: 1 | C109: Обед | D109: закуска
D110: 1 блюдо | E110: Борщ с капустой и картофелем со сметаной | F110: 205 | G110: 2.30 | H110: 4.30 | I110: 11.10 | J110: 113.00 | K110: я3*2004 | L110: 10.63
D111: 2 блюдо | E111: Наггетсы из мяса птицы с соусом | F111: 100 | G111: 13.20 | H111: 12.94 | I111: 13.19 | J111: 199.00 | K111: СВ*5000 | L111: 53.47
D112: гарнир | E112: Каша гречневая вязкая с маслом | F112: 150 | G112: 6.58 | H112: 7.58 | I112: 27.07 | J112: 195.00 | K112: ДП*0075 | L112: 8.90
D113: напиток | E113: Компот из свежих плодов | F113: 200 | G113: 0.20 | H113: 0.10 | I113: 17.20 | J113: 68.00 | K113: дт00122 | L113: 7.97
D114: хлеб бел. | E114: Хлеб пшеничный витаминизированный | F114: 60 | G114: 2.00 | H114: 0.60 | I114: 38.00 | J114: 156.00 | K114: ДП000*5 | L114: 5.10
D115: хлеб черн.
D118: итого | F118: =+F110+F111+F112+F113+F114 -> 715 | G118: =+G110+G111+G112+G113+G114 -> 24.28 | H118: =+H110+H111+H112+H113+H114 -> 25.52 | I118: =+I110+I111+I112+I113+I114 -> 106.56 | J118: =+J110+J111+J112+J113+J114 -> 731.00 | L118: =+L110+L111+L112+L113+L114 -> 86.07
A119: 2 | B119: 1 | C119: Итого за день: | F119: =+F108+F118 -> 1,230 | G119: =+G108+G118 -> 40.68 | H119: =+H108+H118 -> 43.01 | I119: =+I108+I118 -> 189.48 | J119: =+J108+J118 -> 1287.00 | L119: 0.00
A120: 2 | B120: 2 | C120: Завтрак | D120: гор.блюдо | E120: Каша молочная 'Дружба' | F120: 185 | G120: 10.66 | H120: 12.70 | I120: 29.50 | J120: 209.00 | K120: шм07015 | L120: 44.91
D122: гор.напиток | E122: Чай с сахаром и лимоном | F122: 200 | G122: 0.19 | I122: 9.30 | J122: 37.00 | K122: дп0033/ | L122: 7.84
D123: хлеб | E123: Хлеб пшеничный витаминизированный, сыр порционный | F123: 50 | G123: 7.80 | H123: 3.40 | I123: 18.80 | J123: 168.00 | K123: дп00007 | L123: 11.71
D124: фрукты | E124: Яблоки | F124: 100 | G124: 0.30 | H124: 0.40 | I124: 13.80 | J124: 68.00 | K124: ДП00340 | L124: 12.50
D127: итого | F127: =SUM(F120:F126) -> 535 | G127: =SUM(G120:G126) -> 18.95 | H127: =SUM(H120:H126) -> 16.50 | I127: =SUM(I120:I126) -> 71.40 | J127: =SUM(J120:J126) -> 482.00 | L127: =SUM(L120:L126) -> 76.96
A128: 2 | B128: 2 | C128: Обед | D128: закуска | E128: Салат из свеклы с растительным маслом | F128: 60 | G128: 1.20 | H128: 5.20 | I128: 5.50 | J128: 51.00 | K128: дп00244 | L128: 6.44
D129: 1 блюдо | E129: Суп картофельный с макарон. изд. | F129: 200 | G129: 2.20 | H129: 2.10 | I129: 15.10 | J129: 89.00 | K129: СУ02006 | L129: 11.61
D130: 2 блюдо | E130: Жаркое по-домашнему с филе кур | F130: 180 | G130: 12.77 | H130: 13.87 | I130: 11.30 | J130: 245.00 | K130: дп*0043 | L130: 54.02
D131: гарнир
D132: напиток | E132: Компот из смеси сухофр. | F132: 200 | G132: 1.10 | H132: 0.10 | I132: 35.00 | J132: 125.00 | K132: дп**012 | L132: 8.05
D133: хлеб бел. | E133: Хлеб пшеничный витаминизированный | F133: 40 | G133: 3.20 | H133: 0.40 | I133: 18.80 | J133: 104.00 | K133: дп00007 | L133: 3.40
D134: хлеб черн. | E134: Хлеб ржано-пшеничный витаминизированный | F134: 30 | G134: 6.53 | H134: 6.33 | I134: 22.30 | J134: 122.00 | K134: пд**000 | L134: 2.55
D137: итого | F137: =SUM(F128:F136) -> 710 | G137: =SUM(G128:G136) -> 27.00 | H137: =SUM(H128:H136) -> 28.00 | I137: =SUM(I128:I136) -> 108.00 | J137: =SUM(J128:J136) -> 736.00 | L137: =SUM(L128:L136) -> 86.07
A138: 2 | B138: 2 | C138: Итого за день: | F138: =+F127+F137 -> 1,245 | G138: =+G127+G137 -> 45.95 | H138: =+H127+H137 -> 44.50 | I138: =+I127+I137 -> 179.40 | J138: =+J127+J137 -> 1218.00 | L138: 0.00
A139: 2 | B139: 3 | C139: Завтрак | D139: гор.блюдо | E139: Гуляш из мяса говядины | F139: 92 | G139: 10.16 | H139: 14.11 | I139: 6.91 | J139: 205.00 | K139: ДП***00 | L139: 67.02
D140: гор.блюдо | E140: Каша ячневая вязкая | F140: 154 | G140: 3.89 | H140: 5.00 | I140: 20.00 | J140: 184.00 | K140: ДП010АА | L140: 2.72
D141: гор.напиток | E141: Чай с сахаром | F141: 200 | G141: 0.10 | H141: 0.03 | I141: 9.10 | J141: 35.00 | K141: су13/0* | L141: 2.12
D142: хлеб | E142: Хлеб пшеничный витаминизированный | F142: 60 | G142: 2.00 | H142: 0.60 | I142: 38.00 | J142: 156.00 | K142: ДП000*5 | L142: 5.10
D143: фрукты
D146: итого | F146: =SUM(F139:F145) -> 506 | G146: =SUM(G139:G145) -> 16.15 | H146: =SUM(H139:H145) -> 19.74 | I146: =SUM(I139:I145) -> 74.01 | J146: =SUM(J139:J145) -> 580.00 | L146: =SUM(L139:L145) -> 76.96
A147: 2 | B147: 3 | C147: Обед | D147: закуска
D148: 1 блюдо | E148: Суп из овощей со сметаной | F148: 205 | G148: 2.19 | H148: 4.96 | I148: 12.54 | J148: 155.00 | K148: ДЕ2760Е | L148: 16.71
D149: 2 блюдо | E149: Биточки рыбные с соусом томатным | F149: 90 | G149: 9.91 | H149: 11.46 | I149: 4.25 | J149: 164.00 | K149: днп024* | L149: 46.56
D150: гарнир | E150: Макаронные изделия отварные | F150: 150 | G150: 2.38 | H150: 3.67 | I150: 25.22 | J150: 160.00 | K150: ДП00144 | L150: 7.18
D151: напиток | E151: Чай витаминизированный | F151: 200 | G151: 0.10 | H151: 0.03 | I151: 9.10 | J151: 35.00 | K151: дп**334 | L151: 8.82
D152: хлеб бел. | E152: Хлеб пшеничный витаминизированный | F152: 50 | G152: 2.15 | H152: 0.50 | I152: 28.00 | J152: 130.00 | K152: ДП0005* | L152: 4.25
D153: хлеб черн. | E153: Хлеб ржано-пшеничный витаминизированный | F153: 30 | G153: 6.53 | H153: 6.33 | I153: 22.30 | J153: 122.00 | K153: Пд**000 | L153: 2.55
D156: итого | F156: =SUM(F148:F155) -> 725 | G156: =SUM(G148:G155) -> 23.26 | H156: =SUM(H148:H155) -> 26.95 | I156: =SUM(I148:I155) -> 101.41 | J156: =SUM(J148:J155) -> 766.00 | L156: =SUM(L148:L155) -> 86.07
A157: 2 | B157: 3 | C157: Итого за день: | F157: =+F146+F156 -> 1,231 | G157: =+G146+G156 -> 39.41 | H157: =+H146+H156 -> 46.69 | I157: =+I146+I156 -> 175.42 | J157: =+J146+J156 -> 1346.00 | L157: 0.00
A158: 2 | B158: 4 | C158: Завтрак | D158: закуска | E158: Салат из белокач.кап.новый урожай// | F158: 60 | G158: 0.61 | H158: 0.95 | I158: 7.90 | J158: 68.00 | K158: ДП03229 | L158: 6.60
D159: гор.блюдо | E159: Плов из курицы(филе курицы) | F159: 180 | G159: 15.10 | H159: 18.40 | I159: 23.40 | J159: 324.00 | K159: дп*0194 | L159: 55.88
D160: гор.напиток | E160: Чай витаминизированный | F160: 200 | G160: 0.10 | H160: 0.03 | I160: 9.10 | J160: 35.00 | K160: дп**334 | L160: 9.38
D161: хлеб | E161: Хлеб пшеничный витаминизированный | F161: 60 | G161: 2.00 | H161: 0.60 | I161: 38.00 | J161: 156.00 | K161: ДП000*5 | L161: 5.10
D162: фрукты
D165: итого | F165: =SUM(F158:F164) -> 500 | G165: =SUM(G158:G164) -> 17.81 | H165: =SUM(H158:H164) -> 19.98 | I165: =SUM(I158:I164) -> 78.40 | J165: =SUM(J158:J164) -> 583.00 | L165: =SUM(L158:L164) -> 76.96
A166: 2 | B166: 4 | C166: Обед | D166: закуска
D167: 1 блюдо | E167: Рассольник ленинградский со сметаной | F167: 205 | G167: 4.70 | H167: 3.70 | I167: 19.68 | J167: 120.00 | K167: су02000 | L167: 18.43
D168: 2 блюдо | E168: Котлеты из филе кур.с том.соусом | F168: 90 | G168: 9.50 | H168: 12.36 | I168: 17.62 | J168: 227.00 | K168: сз*4000 | L168: 40.07
D169: гарнир | E169: Картофельное пюре | F169: 150 | G169: 3.08 | H169: 4.92 | I169: 20.00 | J169: 138.00 | K169: су06003 | L169: 20.69
D170: напиток | E170: Чай с сахаром | F170: 200 | G170: 0.10 | H170: 0.03 | I170: 9.10 | J170: 35.00 | K170: су13/0* | L170: 1.78
D171: хлеб бел. | E171: Хлеб пшеничный витаминизированный | F171: 30 | G171: 3.00 | H171: 0.30 | I171: 16.80 | J171: 83.00 | K171: дп000*1 | L171: 2.55
D172: хлеб черн. | E172: Хлеб ржано-пшеничный витаминизированный | F172: 30 | G172: 6.53 | H172: 6.33 | I172: 22.30 | J172: 122.00 | K172: Пд**000 | L172: 2.55
D175: итого | F175: =SUM(F166:F174) -> 705 | G175: =SUM(G166:G174) -> 26.91 | H175: =SUM(H166:H174) -> 27.64 | I175: =SUM(I166:I174) -> 105.50 | J175: =SUM(J166:J174) -> 725.00 | L175: =SUM(L166:L174) -> 86.07
A176: 2 | B176: 4 | C176: Итого за день: | F176: =+F165+F175 -> 1,205 | G176: =+G165+G175 -> 44.72 | H176: =+H165+H175 -> 47.62 | I176: =+I165+I175 -> 183.90 | J176: =+J165+J175 -> 1308.00 | L176: 0.00
A177: 2 | B177: 5 | C177: Завтрак | D177: гор.блюдо | E177: Котлеты 'Нежные' с соусом | F177: 90 | G177: 12.36 | H177: 14.53 | I177: 9.30 | J177: 167.00 | K177: сз*5000 | L177: 48.56
D178: гор.блюдо | E178: Макаронные изделия отварные с маслом | F178: 155 | G178: 2.50 | H178: 3.81 | I178: 24.00 | J178: 165.00 | K178: дп001*/ | L178: 12.24
D179: гор.напиток | E179: Чай с сахаром | F179: 200 | G179: 0.10 | H179: 0.03 | I179: 9.10 | J179: 35.00 | K179: су13/0* | L179: 1.96
D180: хлеб | E180: Хлеб пшеничный витаминизированный | F180: 20 | G180: 2.00 | H180: 0.20 | I180: 11.20 | J180: 83.00 | K180: дп000** | L180: 1.70
D181: фрукты | E181: Яблоки | F181: 100 | G181: 0.30 | H181: 0.40 | I181: 13.80 | J181: 68.00 | K181: ДП00340 | L181: 12.50
D184: итого | F184: =SUM(F177:F183) -> 565 | G184: =SUM(G177:G183) -> 17.26 | H184: =SUM(H177:H183) -> 18.97 | I184: =SUM(I177:I183) -> 67.40 | J184: =SUM(J177:J183) -> 518.00 | L184: =SUM(L177:L183) -> 76.96
A185: 2 | B185: 5 | C185: Обед | D185: закуска | E185: Салат Пестрый | F185: 60 | G185: 3.50 | H185: 3.00 | I185: 9.80 | J185: 64.00 | K185: шс01016 | L185: 9.00
D186: 1 блюдо | E186: Суп крестьянский с крупой | F186: 205 | G186: 5.30 | H186: 3.50 | I186: 29.90 | J186: 214.00 | K186: су02022 | L186: 8.45
D187: 2 блюдо | E187: Плов из курицы(филе курицы) | F187: 200 | G187: 12.90 | H187: 17.68 | I187: 38.56 | J187: 419.00 | K187: ДЗ*0194 | L187: 56.66
D188: гарнир
D189: напиток | E189: Чай витаминизированный | F189: 200 | G189: 0.10 | H189: 0.03 | I189: 9.10 | J189: 35.00 | K189: дп**334 | L189: 8.56
D190: хлеб бел. | E190: Хлеб пшеничный витаминизированный | F190: 40 | G190: 3.20 | H190: 0.40 | I190: 18.80 | J190: 104.00 | K190: ДП00007 | L190: 3.40
D191: хлеб черн.
D194: итого | F194: =SUM(F185:F193) -> 705 | G194: =SUM(G185:G193) -> 25.00 | H194: =SUM(H185:H193) -> 24.61 | I194: =SUM(I185:I193) -> 106.16 | J194: =SUM(J185:J193) -> 836.00 | L194: =SUM(L185:L193) -> 86.07
A195: 2 | B195: 5 | C195: Итого за день: | F195: =+F184+F194 -> 1,270 | G195: =+G184+G194 -> 42.26 | H195: =+H184+H194 -> 43.58 | I195: =+I184+I194 -> 173.56 | J195: =+J184+J194 -> 1354.00 | L195: 0.00
C196: Среднее значение за период: | F196: 1,238 | G196: 42.39 | H196: 44.45 | I196: 183.02 | J196: 1295.70

Sheet Лист2

Sheet Лист3
